fUST/lending_fUST_20240325
["ID","MTS","AMOUNT","RATE_DAILY","PERIOD"]
[320331004,1711297842730,-500.0,0.00029042,2]
[320331005,1711297842739,-500.0,0.00029042,2]
[320331006,1711297842749,-500.0,0.00029042,2]
[320331007,1711297842758,-601.18,0.00029042,2]
[320331008,1711297842767,-500.0,0.00029042,2]
[320331009,1711297842776,-500.0,0.00029042,2]
[320331010,1711297842785,-500.0,0.00029042,2]
[320331011,1711297842794,-500.0,0.00029042,2]
[320331012,1711297842804,-500.0,0.00029042,2]
[320331013,1711297842813,-494.92872544,0.00029042,2]
[320331015,1711297842823,-500.0,0.00029042,2]
[320331017,1711297842833,-500.0,0.00029042,2]
[320331019,1711297842842,-500.0,0.00029042,2]
[320331020,1711297842851,-500.0,0.00029042,2]
[320331022,1711297842860,-500.0,0.00029042,2]
[320331024,1711297842869,-500.0,0.00029042,2]
[320331025,1711297842878,-500.0,0.00029042,2]
[320331026,1711297842887,-500.0,0.00029042,2]
[320331027,1711297842896,-3326.17,0.00029042,2]
[320331028,1711297842905,-500.0,0.00029042,2]
[320331029,1711297842914,-500.0,0.00029042,2]
[320331030,1711297842923,-500.0,0.00029042,2]
[320331031,1711297842932,-500.0,0.00029042,2]
[320331032,1711297842942,-3244.3,0.00029042,2]
[320331033,1711297842951,-619.42858792,0.00029042,2]
[320331034,1711297842960,-500.0,0.00029042,2]
[320331035,1711297842969,-500.0,0.00029042,2]
[320331036,1711297842978,-548.55,0.00029042,2]
[320331037,1711297842987,-500.0,0.00029042,2]
[320331038,1711297842996,-4950.4,0.00029042,2]
[320331039,1711297843006,-500.0,0.00029042,2]
[320331040,1711297843015,-500.0,0.00029042,2]
[320331041,1711297843024,-403.39055599,0.00029042,2]
[320331042,1711297843034,-500.0,0.00029042,2]
[320331043,1711297843043,-500.0,0.00029042,2]
[320331044,1711297843052,-500.0,0.00029042,2]
[320331045,1711297843061,-500.0,0.00029042,2]
[320331046,1711297843070,-500.0,0.00029042,2]
[320331047,1711297843081,-464.13063294,0.00029043,2]
[320331048,1711297843090,-500.0,0.00029043,2]
[320331049,1711297843100,-497.30188803,0.00029043,2]
[320331051,1711297843109,-500.0,0.00029316,2]
[320331052,1711297843118,-442.26925899,0.00029316,2]
[320331054,1711297843127,-500.0,0.00029316,2]
[320331055,1711297843136,-500.0,0.00029316,2]
[320331056,1711297843146,-500.0,0.00029316,2]
[320331057,1711297843155,-500.0,0.00029316,2]
[320331058,1711297843165,-500.0,0.00029316,2]
[320331059,1711297843174,-316.12410765,0.00029316,2]
[320331060,1711297843184,-500.0,0.00029316,2]
[320331061,1711297843193,-500.0,0.00029316,2]
[320331062,1711297843202,-500.0,0.00029316,2]
[320331063,1711297843211,-500.0,0.00029316,2]
[320331064,1711297843220,-500.0,0.00029316,2]
[320331065,1711297843229,-500.0,0.00029316,2]
[320331066,1711297843238,-500.0,0.00029316,2]
[320331067,1711297843248,-500.0,0.00029316,2]
[320331068,1711297843261,-574.95937404,0.00029316,2]
[320331069,1711297843270,-500.0,0.00029316,2]
[320331070,1711297843280,-500.0,0.00029316,2]
[320331071,1711297843289,-500.0,0.00029316,2]
[320331072,1711297843300,-500.0,0.00029316,2]
[320331073,1711297843309,-500.0,0.00029316,2]
[320331074,1711297843318,-598.83765242,0.00029316,2]
[320331075,1711297843330,-1563.36,0.00029316,2]
[320331076,1711297843341,-500.0,0.00029316,2]
[320331077,1711297843351,-500.0,0.00029316,2]
[320331078,1711297843360,-500.0,0.00029316,2]
[320331079,1711297843370,-500.0,0.00029316,2]
[320331080,1711297843379,-500.0,0.00029316,2]
[320331081,1711297843388,-3014.24,0.00029316,2]
[320331082,1711297843397,-500.0,0.00029316,2]
[320331083,1711297843406,-325.05,0.00029316,2]
[320331084,1711297843415,-314.37,0.00029316,2]
[320331085,1711297843424,-500.0,0.00029316,2]
[320331086,1711297843433,-500.0,0.00029316,2]
[320331087,1711297843442,-632.81,0.00029316,2]
[320331088,1711297843451,-500.0,0.00029316,2]
[320331089,1711297843460,-630.85833321,0.00029316,2]
[320331090,1711297843469,-500.0,0.00029316,2]
[320331091,1711297843478,-500.0,0.00029316,2]
[320331092,1711297843488,-500.0,0.00029316,2]
[320331093,1711297843497,-514.78720654,0.00029316,2]
[320331094,1711297843506,-500.0,0.00029316,2]
[320331095,1711297843516,-500.0,0.00029316,2]
[320331096,1711297843525,-500.0,0.00029316,2]
[320331097,1711297843535,-500.0,0.00029316,2]
[320331098,1711297843544,-402.30789362,0.00029316,2]
[320331099,1711297843554,-522.89,0.00029316,2]
[320331100,1711297843563,-500.0,0.00029316,2]
[320331101,1711297843572,-291.08,0.00029316,2]
[320331102,1711297843583,-500.0,0.00029316,2]
[320331103,1711297843592,-459.39317721,0.00029316,2]
[320331104,1711297843604,-40.60682279,0.00029316,2]
[320331105,1711297843613,-500.0,0.00029316,2]
[320331106,1711297843622,-500.0,0.00029316,2]
[320331107,1711297843631,-3326.17,0.00029316,2]
[320331108,1711297843640,-500.0,0.00029316,2]
[320331109,1711297843649,-596.81029713,0.00029316,2]
[320331110,1711297843658,-500.0,0.00029316,2]
[320331111,1711297843667,-3244.3,0.00029316,2]
[320331112,1711297843676,-500.0,0.00029316,2]
[320331113,1711297843685,-500.0,0.00029316,2]
[320331114,1711297843694,-500.0,0.00029316,2]
[320331115,1711297843704,-4950.4,0.00029316,2]
[320331116,1711297843713,-379.77345321,0.00029316,2]
[320331117,1711297843724,-120.22654679,0.00029316,2]
[320331118,1711297843733,-500.0,0.00029316,2]
[320331119,1711297843742,-500.0,0.00029316,2]
[320331120,1711297843751,-500.0,0.00029317,2]
[320331121,1711297843760,-500.0,0.00029589,2]
[320331122,1711297843770,-500.0,0.0002959,2]
[320331123,1711297843778,-535.326623,0.0002959,2]
[320331124,1711297843788,-179.28442528,0.0002959,2]
[320331156,1711298825566,1539.44664655,0.00027,2]
[320331157,1711298827161,-470.93164976,0.00027214,2]
[320331158,1711298827180,-154.90705577,0.00027215,2]
[320331159,1711298827200,-88.41680741,0.00027216,2]
[320331160,1711298835073,-61.58319259,0.00027216,2]
[320331161,1711298835103,-166.666666,0.00027496,2]
[320331162,1711298835135,-277.057591,0.00027998,2]
[320331163,1711298835171,-166.666666,0.00028245,2]
[320331164,1711298835200,-215.48133131,0.000286,2]
[320331165,1711298835232,-166.666666,0.00028995,2]
[320331166,1711298835263,-215.48133131,0.0002904,2]
[320331167,1711298835291,-500.0,0.00029041,2]
[320331168,1711298835319,-1288.39389565,0.00029313,2]
[320331169,1711298835350,-204.77269619,0.00029313,2]
[320331170,1711298835381,-10967.37621663,0.00029314,2]
[320331171,1711298835410,-500.0,0.00029315,2]
[320331172,1711298835437,-500.0,0.00029315,2]
[320331173,1711298835465,-500.0,0.00029315,2]
[320331174,1711298835493,-500.0,0.00029315,2]
[320331175,1711298835521,-500.0,0.00029315,2]
[320331176,1711298835549,-379.25557472,0.00029315,2]
[320331177,1711298835577,-500.0,0.00029315,2]
[320331178,1711298835606,-171.4,0.00029315,2]
[320331179,1711298835634,-500.0,0.00029315,2]
[320331180,1711298835665,-500.0,0.00029315,2]
[320331181,1711298835794,-475.99,0.00029315,2]
[320331182,1711298835823,-500.0,0.00029315,2]
[320331183,1711298835851,-243.2081726,0.00029315,2]
[320331184,1711298854429,-170.76931669,0.00029215,4]
[320331185,1711298854458,-161.79801402,0.00029313,2]
[320331186,1711298854488,-154.92253873,0.00029314,2]
[320331187,1711298854517,-256.7918274,0.00029315,2]
[320331188,1711298854546,-500.0,0.00029315,2]
[320331189,1711298854576,-500.0,0.00029315,2]
[320331190,1711298854604,-500.0,0.00029315,2]
[320331191,1711298854633,-500.0,0.00029315,2]
[320331192,1711298854665,-500.0,0.00029315,2]
[320331193,1711298854703,-500.0,0.00029315,2]
[320331194,1711298854746,-500.0,0.00029315,2]
[320331195,1711298854777,-500.0,0.00029315,2]
[320331196,1711298854808,-614.10979676,0.00029315,2]
[320331197,1711298854844,-500.0,0.00029315,2]
[320331198,1711298854887,-500.0,0.00029315,2]
[320331199,1711298854929,-500.0,0.00029315,2]
[320331200,1711298854968,-500.0,0.00029315,2]
[320331201,1711298855008,-2973.94,0.00029315,2]
[320331202,1711298855047,-2720.12692189,0.00029589,2]
[320331203,1711298855085,-500.0,0.00029589,2]
[320331204,1711298855123,-500.0,0.00029589,2]
[320331205,1711298855160,-500.0,0.00029589,2]
[320331206,1711298855198,-500.0,0.00029589,2]
[320331207,1711298855237,-490.73077575,0.00029589,2]
[320331208,1711298855274,-500.0,0.00029589,2]
[320331209,1711298855307,-500.0,0.00029589,2]
[320331210,1711298855343,-500.0,0.00029589,2]
[320331211,1711298855380,-611.75,0.00029589,2]
[320331212,1711298855421,-2345.06080876,0.00029589,2]
[320331213,1711298869783,-628.87919124,0.00029589,2]
[320331214,1711298869816,-217.42430573,0.0002959,2]
[320331215,1711298869849,-166.666666,0.00029745,2]
[320331216,1711298869882,-500.0,0.00029764,2]
[320331217,1711298869916,-500.0,0.00029764,2]
[320331218,1711298869948,-500.0,0.00029764,2]
[320331219,1711298869980,-500.0,0.00029764,2]
[320331220,1711298870167,-500.0,0.00029764,2]
[320331221,1711298870196,-205.17,0.00029764,2]
[320331222,1711298870226,-500.0,0.00029764,2]
[320331223,1711298870257,-500.0,0.00029764,2]
[320331224,1711298870287,-500.0,0.00029764,2]
[320331225,1711298870317,-500.0,0.00029764,2]
[320331226,1711298870347,-500.0,0.00029764,2]
[320331227,1711298870378,-3048.99,0.00029764,2]
[320331228,1711298870408,-500.0,0.00029764,2]
[320331229,1711298870438,-500.0,0.00029764,2]
[320331230,1711298870467,-500.0,0.00029764,2]
[320331231,1711298870496,-500.0,0.00029764,2]
[320331232,1711298870525,-500.0,0.00029764,2]
[320331233,1711298870555,-500.0,0.00029764,2]
[320331234,1711298870585,-500.0,0.00029764,2]
[320331235,1711298870617,-4537.86,0.00029764,2]
[320331236,1711298870648,-500.0,0.00029764,2]
[320331237,1711298870680,-500.0,0.00029764,2]
[320331238,1711298870710,-500.0,0.00029764,2]
[320331239,1711298870739,-500.0,0.00029764,2]
[320331240,1711298870768,-695.00983703,0.00029764,2]
[320331241,1711298872324,-154.92253873,0.00029763,2]
[320331242,1711298872356,-738.07016297,0.00029764,2]
[320331243,1711298872385,-500.0,0.00029764,2]
[320331244,1711298872417,-2763.06,0.00029764,2]
[320331245,1711298872446,-583.08,0.00029764,2]
[320331246,1711298872474,-153.0,0.0002981,2]
[320331247,1711298872503,-201.8484782,0.0002981,2]
[320331248,1711298872531,-153.0,0.0002981,2]
[320331249,1711298872560,-153.0,0.0002981,2]
[320331250,1711298872590,-579.76,0.00029863,2]
[320331251,1711298872620,-500.0,0.00029863,2]
[320331252,1711298872649,-366.82,0.00029863,2]
[320331253,1711298872679,-500.0,0.00029863,2]
[320331254,1711298872709,-500.0,0.00029863,2]
[320331255,1711298872740,-2973.94,0.00029863,2]
[320331256,1711298872768,-162.0,0.0003,2]
[320331257,1711298872803,500.0,0.00029764,2]
[320331258,1711298884401,500.0,0.00029764,2]
[320331259,1711298904177,500.0,0.00029764,2]
[320331260,1711298910766,424.01075502,0.00027664,2]
[320331261,1711298927015,500.0,0.00029764,2]
[320331262,1711298948886,2921.95,0.00029764,2]
[320331263,1711298968961,500.0,0.00029764,2]
[320331264,1711298971054,242.4,0.00029764,2]
[320331270,1711298973095,-154.92253873,0.00030037,2]
[320331271,1711298973117,-99.39552538,0.00030038,2]
[320331272,1711298988263,2602.19,0.00029764,2]
[320331273,1711298996122,326.94806508,0.00029764,2]
[320331274,1711298996151,4021.84193492,0.00029764,2]
[320331278,1711299005034,310.96,0.00029764,2]
[320331280,1711299018622,500.0,0.00029764,2]
[320331282,1711299024390,500.0,0.00029764,2]
[320331283,1711299027657,500.0,0.00029764,2]
[320331319,1711299032054,-271.0,0.00030038,2]
[320331320,1711299032065,-400.60447462,0.00030038,2]
[320331321,1711299032074,-284.72,0.00030038,2]
[320331322,1711299032084,-521.59,0.00030038,2]
[320331323,1711299032094,-500.0,0.00030038,2]
[320331324,1711299032104,-386.68552538,0.00030038,2]
[320331343,1711299038352,-113.31447462,0.00030038,2]
[320331345,1711299038361,-1433.08,0.00030038,2]
[320331346,1711299038370,-500.0,0.00030038,2]
[320331347,1711299038379,-749.94840054,0.00030038,2]
[320331393,1711299043269,-2013.11159946,0.00030038,2]
[320331394,1711299043278,-500.0,0.00030038,2]
[320331395,1711299043288,-84.52657455,0.00030038,2]
[320331399,1711299043634,-374.41859701,0.00030038,2]
[320331400,1711299043644,-500.0,0.00030038,2]
[320331401,1711299043653,-201.99477249,0.00030038,2]
[320331441,1711299046273,-298.00522751,0.00030038,2]
[320331442,1711299046283,-2921.95,0.00030038,2]
[320331443,1711299046292,-500.0,0.00030038,2]
[320331444,1711299046301,-2602.19,0.00030038,2]
[320331445,1711299046312,-4348.79,0.00030038,2]
[320331446,1711299046321,-500.0,0.00030038,2]
[320331448,1711299046330,-500.0,0.00030038,2]
[320331451,1711299046339,-500.0,0.00030038,2]
[320331453,1711299046349,-500.0,0.00030137,2]
[320331455,1711299046357,-500.0,0.00030137,2]
[320331456,1711299046367,-500.0,0.00030137,2]
[320331457,1711299046376,-194.34492776,0.00030311,2]
[320331458,1711299046387,-500.0,0.00030312,2]
[320331459,1711299046396,-500.0,0.00030312,2]
[320331460,1711299046407,-500.0,0.00030312,2]
[320331461,1711299046417,-1433.08,0.00030312,2]
[320331463,1711299046427,-500.0,0.00030312,2]
[320331465,1711299046437,-2763.06,0.00030312,2]
[320331466,1711299046447,-500.0,0.00030312,2]
[320331467,1711299046458,-500.0,0.00030312,2]
[320331469,1711299046470,-500.0,0.00030312,2]
[320331470,1711299046481,-2921.95,0.00030312,2]
[320331472,1711299046492,-500.0,0.00030312,2]
[320331473,1711299046502,-2602.19,0.00030312,2]
[320331475,1711299046512,-4348.79,0.00030312,2]
[320331477,1711299046521,-494.3,0.00030312,2]
[320331478,1711299046532,-500.0,0.00030312,2]
[320331479,1711299046543,-500.0,0.00030312,2]
[320331481,1711299046552,-500.0,0.00030411,2]
[320331482,1711299046564,-500.0,0.00030411,2]
[320331484,1711299046573,-500.0,0.00030411,2]
[320331485,1711299046583,-166.666666,0.00030494,2]
[320331486,1711299046594,-163.59021845,0.00030584,2]
[320331487,1711299046604,-500.0,0.00030586,2]
[320331488,1711299046614,-500.0,0.00030586,2]
[320331489,1711299046627,-500.0,0.00030586,2]
[320331490,1711299046638,-1433.08,0.00030586,2]
[320331491,1711299046649,-500.0,0.00030586,2]
[320331492,1711299046660,-2763.06,0.00030586,2]
[320331493,1711299046671,-500.0,0.00030586,2]
[320331494,1711299046681,-500.0,0.00030586,2]
[320331495,1711299046693,-500.0,0.00030586,2]
[320331496,1711299046702,-2921.95,0.00030586,2]
[320331497,1711299046714,-500.0,0.00030586,2]
[320331498,1711299046724,-2602.19,0.00030586,2]
[320331499,1711299046734,-4348.79,0.00030586,2]
[320331500,1711299046744,-500.0,0.00030586,2]
[320331501,1711299046754,-500.0,0.00030586,2]
[320331502,1711299046764,-500.0,0.00030685,2]
[320331503,1711299046774,-500.0,0.00030685,2]
[320331504,1711299046784,-500.0,0.00030685,2]
[320331505,1711299046795,-153.0,0.000307,2]
[320331506,1711299046806,-153.0,0.000307,2]
[320331507,1711299046816,-153.0,0.000307,2]
[320331508,1711299046826,-153.0,0.000307,2]
[320331509,1711299046835,-201.9092036,0.000307,2]
[320331510,1711299046845,-153.0,0.000307,2]
[320331511,1711299046854,-201.9092036,0.000307,2]
[320331512,1711299046863,-153.0,0.000307,2]
[320331513,1711299046872,-153.0,0.000307,2]
[320331514,1711299046882,-153.0,0.000307,2]
[320331515,1711299046891,-153.0,0.000307,2]
[320331516,1711299046900,-201.9092036,0.000307,2]
[320331517,1711299046909,-153.0,0.000307,2]
[320331518,1711299046918,-153.0,0.000307,2]
[320331519,1711299046928,-153.0,0.000307,2]
[320331520,1711299046937,-205.53,0.00030859,2]
[320331521,1711299046947,-500.0,0.0003086,2]
[320331522,1711299046957,-500.0,0.0003086,2]
[320331523,1711299046966,-500.0,0.0003086,2]
[320331524,1711299046976,-1433.08,0.0003086,2]
[320331525,1711299046985,-500.0,0.0003086,2]
[320331526,1711299046995,-2763.06,0.0003086,2]
[320331527,1711299047004,-500.0,0.0003086,2]
[320331528,1711299047014,-500.0,0.0003086,2]
[320331529,1711299047024,-500.0,0.0003086,2]
[320331530,1711299047033,-2921.95,0.0003086,2]
[320331531,1711299047043,-500.0,0.0003086,2]
[320331532,1711299047053,-2602.19,0.0003086,2]
[320331533,1711299047063,-4348.79,0.0003086,2]
[320331534,1711299047073,-500.0,0.0003086,2]
[320331535,1711299047082,-500.0,0.0003086,2]
[320331536,1711299047092,-153.0,0.00030932,2]
[320331537,1711299047101,-153.0,0.00030932,2]
[320331538,1711299047110,-153.0,0.00030932,2]
[320331539,1711299047120,-500.0,0.00030959,2]
[320331540,1711299047130,-500.0,0.00030959,2]
[320331541,1711299047140,-500.0,0.00030959,2]
[320331542,1711299047150,-36791.22176677,0.00031034,2]
[320331543,1711299047163,-6997.55518323,0.00031034,2]
[320331544,1711299047173,-500.0,0.00031134,2]
[320331545,1711299047182,-500.0,0.00031134,2]
[320331546,1711299047193,-500.0,0.00031134,2]
[320331547,1711299047204,-850.16917906,0.00031134,2]
[320331548,1711299047219,-582.91082094,0.00031134,2]
[320331549,1711299047231,-601.65,0.00031134,2]
[320331550,1711299047241,-780.46917906,0.00031134,2]
[320331553,1711299054421,500.0,0.00029764,2]
[320331554,1711299060720,337.3610181,0.00028795,2]
[320331570,1711299087826,2154.9,0.00029764,2]
[320331574,1711299099579,166.666666,0.000296,2]
[320331575,1711299110484,500.0,0.00029764,2]
[320331585,1711299141511,171.19995,0.00029788,2]
[320331591,1711299161358,500.0,0.00029764,2]
[320331602,1711299195995,500.0,0.00029764,2]
[320331605,1711299212158,282.67383668,0.00028934,2]
[320331613,1711299224382,4178.3300214,0.00029989,2]
[320331616,1711299231795,3442.79,0.00029764,2]
[320331623,1711299243836,500.0,0.00029764,2]
[320331624,1711299244695,500.0,0.00029764,2]
[320331626,1711299250035,433.2765729,0.00029764,2]
[320331627,1711299250068,1626.7934271,0.00029764,2]
[320331635,1711299261144,500.0,0.00029764,2]
[320331637,1711299278112,16820.75503496,0.0002877,2]
[320331639,1711299279164,1052.45153794,0.0003,2]
[320331657,1711299576090,-166.666666,0.00028612,2]
[320331658,1711299576111,-188.44922446,0.00028934,2]
[320331659,1711299576131,-166.666666,0.00029393,2]
[320331660,1711299576151,-5563.59901136,0.00029763,2]
[320331661,1711299576172,-500.0,0.00029764,2]
[320331662,1711299576195,-1974.24,0.00029764,2]
[320331663,1711299576216,-690.37843218,0.00029915,2]
[320331687,1711299911567,1539.44664655,0.00025,9]
[320331702,1711300026176,-754.93823133,0.00023464,2]
[320331709,1711300146209,-3090.88833964,0.00023453,2]
[320331710,1711300146231,-1538.94912524,0.00023454,2]
[320331711,1711300146252,-685.75009172,0.00023455,2]
[320331712,1711300146277,-1888.28413081,0.00023455,2]
[320331713,1711300146298,-300.0,0.00023455,2]
[320331714,1711300146319,-864.19676408,0.00023456,2]
[320331715,1711300146357,-204.77269619,0.00023456,2]
[320331716,1711300146380,-1201.46273977,0.00023464,2]
[320331717,1711300146403,-906.78048306,0.00023464,2]
[320331718,1711300146427,-15984.46474283,0.00023464,2]
[320331719,1711300146448,-169.0,0.00023468,2]
[320331720,1711300146468,-166.666666,0.00024257,2]
[320331721,1711300146492,-170.06059136,0.000249,2]
[320331722,1711300146536,-166.666666,0.00024918,2]
[320331723,1711300146586,-152.11549897,0.0002495,2]
[320331724,1711300146637,-663.372835,0.00024966,2]
[320331725,1711300146663,-3151.84274937,0.00025497,2]
[320331726,1711300151109,-617.58899448,0.00023453,2]
[320331727,1711300151130,-821.32765463,0.00025497,2]
[320331728,1711300151151,-166.666666,0.00025579,2]
[320331729,1711300151177,-353.0,0.00025801,2]
[320331730,1711300151198,-166.666666,0.00026241,2]
[320331731,1711300151219,-166.666666,0.00026902,2]
[320331732,1711300151239,-349.999999,0.00027,2]
[320331733,1711300151258,-1619.429426,0.00027498,2]
[320331734,1711300151278,-23.48039647,0.00027563,2]
[320331735,1711300159105,-143.18626953,0.00027563,2]
[320331736,1711300159126,-548.44788846,0.00027889,2]
[320331737,1711300160765,130.20584201,0.00023359,2]
[320331740,1711300174093,-9876.37804362,0.00023359,2]
[320331741,1711300174113,-6931.98504635,0.00023464,2]
[320331742,1711300174133,-86.47686164,0.00023464,2]
[320331799,1711300232996,-1683.0,0.00023462,2]
[320331887,1711300238288,-1978.00259957,0.00023462,2]
[320331890,1711300238299,-2002.31207968,0.00023462,2]
[320331893,1711300238308,-1103.70852218,0.00023463,2]
[320331896,1711300238318,-417.2900734,0.00023464,2]
[320331899,1711300238328,-164.348152,0.00028658,2]
[320331901,1711300238338,-204.77269619,0.00029814,2]
[320331904,1711300238348,-685.75009172,0.00029814,2]
[320331907,1711300238359,-283.26959533,0.00029815,2]
[320331909,1711300238369,-3090.88833964,0.00029856,2]
[320331911,1711300238380,-1619.429426,0.00029857,2]
[320331914,1711300238391,-24199.6215678,0.00029858,2]
[320331917,1711300238402,-500.0,0.00029914,2]
[320331920,1711300238411,-500.0,0.00029914,2]
[320331922,1711300238421,-500.0,0.00029914,2]
[320331925,1711300238431,-500.0,0.00029914,2]
[320331926,1711300238441,-500.0,0.00029914,2]
[320331928,1711300238450,-500.0,0.00029914,2]
[320331932,1711300238460,-500.0,0.00029914,2]
[320331935,1711300238469,-500.0,0.00029914,2]
[320331936,1711300238481,-500.0,0.00029914,2]
[320331939,1711300238490,-500.0,0.00029914,2]
[320331941,1711300238504,-500.0,0.00029914,2]
[320331943,1711300238513,-500.0,0.00029914,2]
[320331945,1711300238523,-500.0,0.00029914,2]
[320331948,1711300238533,-500.0,0.00029914,2]
[320331950,1711300238548,-500.0,0.00029914,2]
[320331952,1711300238560,-500.0,0.00029914,2]
[320331954,1711300238570,-500.0,0.00029914,2]
[320331956,1711300238580,-500.0,0.00029914,2]
[320331958,1711300238590,-500.0,0.00029914,2]
[320331960,1711300238600,-500.0,0.00029914,2]
[320331962,1711300238610,-500.0,0.00029914,2]
[320331964,1711300238620,-500.0,0.00029914,2]
[320331966,1711300238631,-500.0,0.00029914,2]
[320331968,1711300238649,-500.0,0.00029914,2]
[320331970,1711300238659,-500.0,0.00029914,2]
[320331972,1711300238669,-500.0,0.00029914,2]
[320331974,1711300238679,-344.75661827,0.00029914,2]
[320331976,1711300238688,-500.0,0.00029914,2]
[320331978,1711300238698,-500.0,0.00029914,2]
[320331980,1711300238708,-500.0,0.00029914,2]
[320331982,1711300238718,-500.0,0.00029914,2]
[320331984,1711300238729,-500.0,0.00029914,2]
[320331987,1711300238739,-500.0,0.00029914,2]
[320331989,1711300238753,-500.0,0.00029914,2]
[320331991,1711300238764,-500.0,0.00029914,2]
[320331992,1711300238774,-500.0,0.00029914,2]
[320331994,1711300238784,-500.0,0.00029914,2]
[320331995,1711300238794,-500.0,0.00029914,2]
[320331996,1711300238804,-500.0,0.00029914,2]
[320331997,1711300238815,-500.0,0.00029914,2]
[320331998,1711300238825,-500.0,0.00029914,2]
[320331999,1711300238836,-250.0,0.00029914,2]
[320332000,1711300238846,-500.0,0.00029914,2]
[320332001,1711300238856,-500.0,0.00029914,2]
[320332002,1711300238867,-500.0,0.00029914,2]
[320332003,1711300238877,-500.0,0.00029914,2]
[320332004,1711300238887,-500.0,0.00029914,2]
[320332005,1711300238897,-500.0,0.00029914,2]
[320332006,1711300238907,-500.0,0.00029914,2]
[320332007,1711300238917,-500.0,0.00029914,2]
[320332008,1711300238928,-500.0,0.00029914,2]
[320332009,1711300238938,-500.0,0.00029914,2]
[320332010,1711300238949,-500.0,0.00029914,2]
[320332011,1711300238959,-500.0,0.00029914,2]
[320332012,1711300238971,-500.0,0.00029914,2]
[320332013,1711300238981,-155.0,0.00029915,2]
[320332014,1711300238992,-155.02325349,0.00029915,2]
[320332015,1711300239005,-14764.8058419,0.00029915,2]
[320332016,1711300239015,-750.74283642,0.00029915,2]
[320332017,1711300239026,-180.0,0.0003,2]
[320332018,1711300239035,-500.0,0.00030859,2]
[320332019,1711300239046,-500.0,0.00030859,2]
[320332020,1711300239056,-500.0,0.00030859,2]
[320332021,1711300239068,-500.0,0.00030859,2]
[320332022,1711300239079,-203.86620209,0.00030859,2]
[320332023,1711300239090,-205.23034575,0.00031132,4]
[320332024,1711300239100,-500.0,0.00031133,2]
[320332025,1711300239110,-500.0,0.00031133,2]
[320332026,1711300239120,-500.0,0.00031133,2]
[320332027,1711300239131,-151.95883781,0.00031193,3]
[320332028,1711300239140,-774.65895211,0.00031405,4]
[320332029,1711300239149,-924.10310553,0.00031405,4]
[320332030,1711300239159,-655.4564493,0.00031405,4]
[320332031,1711300239168,-1309.11437463,0.00031405,4]
[320332032,1711300239178,-500.0,0.00031406,2]
[320332033,1711300239187,-3299.34,0.00031406,2]
[320332034,1711300239197,-500.0,0.00031406,2]
[320332035,1711300239208,-500.0,0.00031406,2]
[320332036,1711300239217,-500.0,0.00031406,2]
[320332037,1711300239227,-209.67237575,0.00031406,2]
[320332038,1711300239237,-561.94,0.00031406,2]
[320332039,1711300239249,-505.53,0.00031406,2]
[320332040,1711300239258,-588.65,0.00031406,2]
[320332041,1711300239268,-500.0,0.00031406,2]